[Event "AZE-ch Men 2019"]
[Site "Baku"]
[Date "2019.01.22"]
[Round "7"]
[White "Isgandarov, Shahriyar"]
[Black "Ilyasli, Ughur"]
[Result "0-1"]
[ECO "B02"]
[WhiteElo "2113"]
[BlackElo "2148"]
[Annotator "NA"]
[PlyCount "98"]
[EventDate "2019.01.16"]
[EventType "swiss"]
[EventCountry "AZE"]
[SourceTitle "playchess.com"]
[Source "ChessBase"]
[SourceQuality "1"]
[TimeControl "40/5400+30:1800+30"]

1. e4 {[%emt 0:00:00]} Nf6 {[%emt 0:00:32]} 2. Nc3 {[%emt 0:03:08]} d5 {[%emt 0:00:05]} 3. exd5 {[%emt 0:00:59]} Nxd5 {[%emt 0:00:06]} 4. Nf3 {[%emt 0:00:11]} g6 {[%emt 0:05:17]} 5. Bc4 {[%emt 0:05:36]} Nb6 {[%emt 0:01:46]} 6. Be2 {[%emt 0:03:31]} Bg7 {[%emt 0:00:09]} 7. O-O {[%emt 0:00:36]} Nc6 {[%emt 0:00:09]} 8. a4 {[%emt 0:08:30]} a5 {[%emt 0:02:22]} 9. Nb5 {[%emt 0:01:58]} e5 {[%emt 0:10:25]} 10. c3 {[%emt 0:11:04]} O-O {[%emt 0:03:11]} 11. d4 {[%emt 0:03:04]} exd4 {[%emt 0:13:03]} 12. Nfxd4 {[%emt 0:01:58]} Nxd4 {[%emt 0:01:06]} 13. Nxd4 {[%emt 0:00:20]} c6 {[%emt 0:14:30]} 14. Bf3 {[%emt 0:04:58]} Bxd4 {[%emt 0:00:32]} 15. cxd4 {[%emt 0:01:57]} Be6 {[%emt 0:00:46]} 16. Bf4 {[%emt 0:07:48]} Bd5 {[%emt 0:05:37]} 17. Bg4 {[%emt 0:07:50]} Re8 {[%emt 0:05:54]} 18. Re1 {[%emt 0:08:55]} Rxe1+ {[%emt 0:08:25]} 19. Qxe1 {[%emt 0:00:07]} Qh4 {[%emt 0:00:06]} 20. h3 {[%emt 0:04:32]} h5 {[%emt 0:00:25]} 21. g3 {[%emt 0:04:09]} Qf6 {[%emt 0:00:43]} 22. Bd1 {[%emt 0:08:03]} Qxd4 {[%emt 0:05:14]} 23. Qe5 {[%emt 0:05:11]} Qxe5 {[%emt 0:03:06]} 24. Bxe5 {[%emt 0:00:02]} Nc4 {[%emt 0:04:03]} 25. Bc3 {[%emt 0:00:26]} Nd6 {[%emt 0:00:34]} 26. Bc2 {[%emt 0:01:58]} Ne4 {[%emt 0:02:58]} 27. Bxe4 {[%emt 0:02:11]} Bxe4 {[%emt 0:00:02]} 28. Re1 {[%emt 0:01:34]} Bd5 {[%emt 0:01:18]} 29. Re7 {[%emt 0:00:53]} b5 {[%emt 0:02:18]} 30. axb5 {[%emt 0:02:00]} cxb5 {[%emt 0:00:01]} 31. g4 {[%emt 0:00:42]} b4 {[%emt 0:00:51]} 32. Bf6 {[%emt 0:00:25]} Be6 {[%emt 0:01:11]} 33. f3 {[%emt 0:01:09]} a4 {[%emt 0:00:38]} 34. Rb7 {[%emt 0:00:35]} a3 {[%emt 0:00:10]} 35. bxa3 {[%emt 0:00:28]} bxa3 {[%emt 0:00:01]} 36. gxh5 {[%emt 0:00:36]} a2 {[%emt 0:00:21]} 37. Ba1 {[%emt 0:00:19]} Rc8 {[%emt 0:01:05]} 38. Kh2 {[%emt 0:00:29]} gxh5 {[%emt 0:00:23]} 39. Rb2 {[%emt 0:00:39]} Rc1 {[%emt 0:00:20]} 40. Rg2+ {[%emt 0:00:00]} Kh7 {[%emt 0:00:00]} 41. Rg1 {[%emt 0:01:30]} Rxg1 {[%emt 0:00:32]} 42. Kxg1 {[%emt 0:00:06]} Bxh3 {[%emt 0:00:03]} 43. Kh2 {[%emt 0:01:14]} Be6 {[%emt 0:00:06]} 44. Kg3 {[%emt 0:00:59]} Kg6 {[%emt 0:00:13]} 45. Kf4 {[%emt 0:00:44]} h4 {[%emt 0:00:05]} 46. Bb2 {[%emt 0:00:23]} h3 {[%emt 0:00:04]} 47. Kg3 {[%emt 0:00:59]} Kh7 {[%emt 0:00:04]} 48. Bc3 {[%emt 0:02:04]} Kg8 {[%emt 0:00:04]} 49. Kf2 {[%emt 0:00:28]} Kf8 {[%emt 0:00:03]} 0-1

[Event "AZE-ch Men 2019"]
[Site "Baku"]
[Date "2019.01.22"]
[Round "7"]
[White "Ahadzade, Kanan"]
[Black "Abbasov, Amil"]
[Result "1/2-1/2"]
[ECO "A25"]
[WhiteElo "2019"]
[BlackElo "2190"]
[Annotator "NA"]
[PlyCount "83"]
[EventDate "2019.01.16"]
[EventType "swiss"]
[EventCountry "AZE"]
[SourceTitle "playchess.com"]
[Source "ChessBase"]
[SourceQuality "1"]
[TimeControl "40/5400+30:1800+30"]

1. c4 {[%emt 0:00:14]} e5 {[%emt 0:01:38]} 2. Nc3 {[%emt 0:00:41]} Nc6 {[%emt 0:00:15]} 3. g3 {[%emt 0:00:06]} g6 {[%emt 0:00:13]} 4. Bg2 {[%emt 0:00:04]} Bg7 {[%emt 0:00:06]} 5. d3 {[%emt 0:00:22]} Nge7 {[%emt 0:00:13]} 6. e3 {[%emt 0:01:10]} d6 {[%emt 0:00:24]} 7. Nge2 {[%emt 0:00:33]} Be6 {[%emt 0:00:18]} 8. Nd5 {[%emt 0:00:26]} Qd7 {[%emt 0:10:38]} 9. Nec3 {[%emt 0:16:09]} O-O {[%emt 0:07:15]} 10. O-O {[%emt 0:00:25]} Rab8 {[%emt 0:14:06]} 11. Qa4 {[%emt 0:07:39]} a6 {[%emt 0:05:52]} 12. Rb1 {[%emt 0:09:58]} Bf5 {[%emt 0:15:55]} 13. e4 {[%emt 0:03:12]} Be6 {[%emt 0:02:02]} 14. Be3 {[%emt 0:02:05]} f5 {[%emt 0:03:52]} 15. Bg5 {[%emt 0:04:34]} Nc8 {[%emt 0:05:55]} 16. exf5 {[%emt 0:07:59]} Bxf5 {[%emt 0:04:06]} 17. Ne4 {[%emt 0:01:13]} Qf7 {[%emt 0:00:12]} 18. Be3 $11 {[%emt 0:04:10]} Qd7 {[%emt 0:08:12]} 19. Bg5 {[%emt 0:01:37]} Qf7 {[%emt 0:00:14]} 20. Be3 {[%emt 0:00:20]} Qd7 {[%emt 0:00:14]} 21. b4 {[%emt 0:07:43]} N8e7 {[%emt 0:04:41]} 22. Nxe7+ {[%emt 0:02:20]} Nxe7 {[%emt 0:02:19]} 23. Qxd7 {[%emt 0:02:38]} Bxd7 {[%emt 0:00:06]} 24. Nc3 {[%emt 0:01:39]} Nf5 {[%emt 0:05:17]} 25. Bd2 {[%emt 0:05:50]} Nd4 {[%emt 0:00:29]} 26. Be3 {[%emt 0:00:16]} Nf5 {[%emt 0:00:12]} 27. Bd2 {[%emt 0:00:05]} Bh6 {[%emt 0:02:32]} 28. Bxh6 {[%emt 0:00:21]} Nxh6 {[%emt 0:00:05]} 29. Nd5 {[%emt 0:00:12]} c6 {[%emt 0:00:18]} 30. Nc3 {[%emt 0:00:23]} Bf5 {[%emt 0:00:31]} 31. Ne4 {[%emt 0:00:19]} Rfd8 {[%emt 0:00:40]} 32. Rfd1 {[%emt 0:00:16]} Kg7 {[%emt 0:01:00]} 33. Rbc1 {[%emt 0:00:24]} Ng8 {[%emt 0:00:46]} 34. d4 {[%emt 0:00:53]} Nf6 {[%emt 0:01:12]} 35. Nxf6 {[%emt 0:00:17]} Kxf6 {[%emt 0:00:06]} 36. d5 {[%emt 0:00:25]} cxd5 {[%emt 0:00:13]} 37. Bxd5 {[%emt 0:00:11]} Be6 {[%emt 0:00:05]} 38. Bf3 {[%emt 0:01:42]} b5 {[%emt 0:00:15]} 39. cxb5 {[%emt 0:00:09]} axb5 {[%emt 0:01:34]} 40. Rc6 {[%emt 0:00:00]} Ke7 {[%emt 0:00:00]} 41. Rc7+ {[%emt 0:00:57]} Rd7 {[%emt 0:00:16]} 42. Rdc1 {[%emt 0:00:39]} 1/2-1/2

[Event "AZE-ch Men 2019"]
[Site "Baku"]
[Date "2019.01.22"]
[Round "7"]
[White "Allahverdiyeva, Ayan"]
[Black "Abdulov, Orkhan"]
[Result "1/2-1/2"]
[ECO "C84"]
[WhiteElo "1975"]
[BlackElo "2395"]
[Annotator "NA"]
[PlyCount "95"]
[EventDate "2019.01.16"]
[EventType "swiss"]
[EventCountry "AZE"]
[SourceTitle "playchess.com"]
[Source "ChessBase"]
[SourceQuality "1"]
[TimeControl "40/5400+30:1800+30"]

1. e4 {[%emt 0:02:36]} e5 {[%emt 0:02:57]} 2. Nf3 {[%emt 0:01:32]} Nc6 {[%emt 0:01:50]} 3. Bb5 {[%emt 0:02:08]} a6 {[%emt 0:00:57]} 4. Ba4 {[%emt 0:00:27]} Nf6 {[%emt 0:00:46]} 5. O-O {[%emt 0:00:40]} Be7 {[%emt 0:00:17]} 6. d3 {[%emt 0:02:50]} d6 {[%emt 0:01:29]} 7. c3 {[%emt 0:00:38]} O-O {[%emt 0:01:48]} 8. Re1 {[%emt 0:00:38]} b5 {[%emt 0:03:49]} 9. Bc2 {[%emt 0:01:30]} Bb7 {[%emt 0:00:51] C84: Closed Ruy Lopez: Unusual White 6th moves} (9... d5 10. Nbd2 d4 11. Nb3 dxc3 12. bxc3 a5 13. a4 b4 14. Bd2 Bg4 15. h3 Bxf3 16. Qxf3 bxc3 17. Bxc3 Bb4 18. Bxb4 Nxb4 {½-½ (30) Anand,V (2776)-Svidler,P (2760) Moscow 2018}) 10. Nbd2 {[%emt 0:04:59]} d5 {[%emt 0:02:38]} 11. exd5 {[%emt 0:01:24]} Qxd5 {[%emt 0:00:31]} 12. Nf1 {[%emt 0:01:26]} Rfe8 {[%emt 0:03:48]} 13. Bb3 $146 {[%emt 0:14:28]} ({Predecessor:} 13. Bg5 h6 14. Bxf6 Bxf6 15. Ng3 Qd7 16. Qe2 Rad8 17. Ne4 {½-½ (43) Ilyin,P (2302)-Kolpakov,N (2204) ICCF email 2014}) 13... Qd7 {[%emt 0:03:01]} 14. Nxe5 {[%emt 0:13:12]} Nxe5 {[%emt 0:02:13]} 15. Rxe5 {[%emt 0:00:13]} Ng4 {[%emt 0:16:06]} 16. Rh5 {[%emt 0:09:28]} g6 {[%emt 0:19:04]} 17. Rh3 {[%emt 0:03:02]} Rad8 {[%emt 0:04:48]} 18. Rg3 {[%emt 0:09:43]} Ne5 {[%emt 0:06:41]} 19. d4 {[%emt 0:03:16]} c5 {[%emt 0:05:38]} 20. Be3 {[%emt 0:08:12]} Qc6 {[%emt 0:06:19]} 21. Qh5 {[%emt 0:05:01]} Nc4 {[%emt 0:02:31]} 22. Bxc4 {[%emt 0:00:10]} bxc4 {[%emt 0:00:02]} 23. dxc5 {[%emt 0:00:05]} Rd3 {[%emt 0:06:17]} 24. Qg4 {[%emt 0:01:35]} Qd5 {[%emt 0:00:35]} 25. Bd4 {[%emt 0:03:42]} h5 {[%emt 0:01:25]} 26. Qf4 {[%emt 0:01:03]} Bxc5 {[%emt 0:02:11]} 27. Bxc5 {[%emt 0:03:56]} Qxc5 {[%emt 0:00:22]} 28. Ne3 {[%emt 0:00:05]} Be4 {[%emt 0:02:12]} 29. Rg5 {[%emt 0:01:33]} Qc8 {[%emt 0:00:52]} 30. Re5 {[%emt 0:00:52]} Rxe5 {[%emt 0:00:23]} 31. Qxe5 {[%emt 0:00:03]} Bb7 {[%emt 0:00:37]} 32. Qf4 {[%emt 0:00:53]} Qd7 {[%emt 0:00:54]} 33. Qxc4 {[%emt 0:00:42]} Rd2 {[%emt 0:00:21]} 34. b3 {[%emt 0:00:59]} Qd6 {[%emt 0:00:32]} 35. Qf1 {[%emt 0:00:53]} Qf6 {[%emt 0:00:33]} 36. Qe1 {[%emt 0:02:29]} Qxc3 {[%emt 0:01:41]} 37. Nc4 {[%emt 0:00:10]} Rc2 {[%emt 0:00:09]} 38. Qxc3 {[%emt 0:01:25]} Rxc3 {[%emt 0:00:02]} 39. Rd1 {[%emt 0:00:11]} Rc2 {[%emt 0:00:28]} 40. a4 {[%emt 0:00:00]} Kf8 {[%emt 0:00:00]} 41. f3 {[%emt 0:07:19]} Ke7 {[%emt 0:01:44]} 42. Ne5 {[%emt 0:02:50]} Bc8 {[%emt 0:01:56]} 43. b4 {[%emt 0:01:07]} Rb2 {[%emt 0:01:42]} 44. Rd4 {[%emt 0:02:56]} Rb1+ $1 {[%emt 0:00:56]} 45. Kf2 {[%emt 0:00:18]} Rb2+ {[%emt 0:00:01]} 46. Kg1 {[%emt 0:01:26]} (46. Kg3 $16) 46... Rb1+ {[%emt 0:00:01]} 47. Kf2 {[%emt 0:00:06]} Rb2+ {[%emt 0:00:02]} 48. Kg1 $11 {[%emt 0:00:40]} 1/2-1/2

[Event "AZE-ch Men 2019"]
[Site "Baku"]
[Date "2019.01.22"]
[Round "7"]
[White "Novruzov, Emin"]
[Black "Guliev, Sarhan"]
[Result "1/2-1/2"]
[ECO "C26"]
[WhiteElo "1910"]
[BlackElo "2342"]
[Annotator "NA"]
[PlyCount "69"]
[EventDate "2019.01.16"]
[EventType "swiss"]
[EventCountry "AZE"]
[SourceTitle "playchess.com"]
[Source "ChessBase"]
[SourceQuality "1"]
[TimeControl "40/5400+30:1800+30"]

1. e4 {[%emt 0:01:58]} e5 {[%emt 0:02:14]} 2. Nc3 {[%emt 0:01:41]} Nf6 {[%emt 0:00:19]} 3. Bc4 {[%emt 0:00:10]} Bc5 {[%emt 0:14:07]} 4. d3 {[%emt 0:02:43]} d6 {[%emt 0:05:43]} 5. Na4 {[%emt 0:05:58]} Bb4+ {[%emt 0:03:05]} 6. c3 {[%emt 0:00:48]} Ba5 {[%emt 0:00:02] C27: Vienna Game: 2...Nf6 3 Bc4 Nxe4} 7. b4 {[%emt 0:00:11]} Bb6 {[%emt 0:00:02]} 8. Nxb6 {[%emt 0:00:58]} axb6 {[%emt 0:00:01]} 9. Bg5 {[%emt 0:05:10]} h6 $146 {[%emt 0:00:54]} ({Predecessor:} 9... Be6 10. Bxe6 fxe6 11. Qb3 Qe7 12. Ne2 O-O 13. f4 Nbd7 14. f5 {½-½ (85) Zeller,F (2440)-Latzke,B (2205) Willsbach 1997}) 10. Bh4 {[%emt 0:00:21]} Be6 {[%emt 0:07:17]} 11. Bxe6 {[%emt 0:07:25]} fxe6 {[%emt 0:00:18]} 12. f3 {[%emt 0:01:23]} Nbd7 {[%emt 0:00:22]} 13. Ne2 {[%emt 0:00:50]} Qe7 {[%emt 0:00:48]} 14. O-O {[%emt 0:01:16]} O-O {[%emt 0:03:46]} 15. Qb3 {[%emt 0:06:27]} Kh7 {[%emt 0:04:46]} 16. Rad1 {[%emt 0:01:58]} g5 {[%emt 0:03:35]} 17. Be1 {[%emt 0:01:51]} Nh5 {[%emt 0:00:40]} 18. d4 {[%emt 0:01:48]} g4 {[%emt 0:02:12]} 19. c4 {[%emt 0:03:54]} gxf3 {[%emt 0:05:07]} 20. Rxf3 {[%emt 0:00:20]} exd4 {[%emt 0:00:47]} 21. Nxd4 {[%emt 0:02:29]} Ne5 {[%emt 0:00:16]} 22. Rxf8 {[%emt 0:23:07]} Rxf8 {[%emt 0:00:45]} 23. c5 {[%emt 0:04:19]} Qf6 $17 {[%emt 0:04:44]} ({But not} 23... dxc5 24. Qxe6 Qg7 25. Nf5 $15) 24. Nf3 {[%emt 0:05:57]} Nf4 {[%emt 0:06:10]} 25. cxd6 {[%emt 0:08:47]} cxd6 {[%emt 0:05:43]} 26. Bg3 {[%emt 0:04:10]} Ne2+ {[%emt 0:01:47]} 27. Kf2 {[%emt 0:00:23]} Nxf3 {[%emt 0:07:34]} 28. gxf3 {[%emt 0:00:36]} Nd4 {[%emt 0:04:23]} 29. e5 {[%emt 0:00:45]} dxe5 {[%emt 0:02:33]} 30. Qd3+ {[%emt 0:00:57]} Kg8 {[%emt 0:05:42]} 31. Bxe5 {[%emt 0:02:54]} Qxe5 {[%emt 0:00:59]} 32. Qg6+ {[%emt 0:00:17]} Kh8 {[%emt 0:04:24]} 33. Qxh6+ {[%emt 0:00:04]} Kg8 {[%emt 0:00:05]} 34. Qg6+ {[%emt 0:00:03]} Kh8 {[%emt 0:00:01]} 35. Qh6+ {[%emt 0:00:11]} 1/2-1/2

[Event "AZE-ch Men 2019"]
[Site "Baku"]
[Date "2019.01.23"]
[Round "8"]
[White "Gadimbayli, Abdulla"]
[Black "Shahaliyev, Ismayil"]
[Result "1/2-1/2"]
[ECO "C02"]
[WhiteElo "2409"]
[BlackElo "2389"]
[Annotator "NA"]
[PlyCount "80"]
[EventDate "2019.01.16"]
[EventType "swiss"]
[EventCountry "AZE"]
[SourceTitle "playchess.com"]
[Source "ChessBase"]
[SourceQuality "1"]
[TimeControl "40/5400+30:1800+30"]

{[%evp 8,60,4,0,32767,-8,32767,32767,32767,12,39,3,32767,-19,0,0,0,4,7,2,0,0,7,0,2,9,32,22,2,0,0,-15,-7,-22,-62,-45,9,-38,32767,0,0,0,0,0,15,5,3,0,0,0,22,0,32,12,39]} 1. e4 {[%emt 0:10:52]} e6 {[%emt 0:03:47]} 2. d4 {[%emt 0:00:14]} d5 {[%emt 0:00:22]} 3. e5 {[%emt 0:00:30]} c5 {[%emt 0:00:47]} 4. c3 {[%emt 0:00:10]} Nc6 {[%emt 0:00:11]} 5. Nf3 {[%emt 0:00:08]} Qb6 {[%emt 0:00:04]} 6. a3 {[%emt 0:00:31]} Nh6 {[%emt 0:01:38]} 7. b4 {[%emt 0:11:49]} cxd4 {[%emt 0:00:18]} 8. Bxh6 {[%emt 0:01:19]} gxh6 {[%emt 0:00:09]} 9. cxd4 {[%emt 0:00:02]} Bd7 {[%emt 0:04:32]} 10. Be2 {[%emt 0:06:10]} Rg8 {[%emt 0:03:35] C02: French: Advance Variation} 11. O-O {[%emt 0:04:18]} Rg4 {[%emt 0:00:19]} 12. h3 {[%emt 0:04:02]} Rf4 {[%emt 0:00:56]} 13. g3 {[%emt 0:03:10]} Rxf3 {[%emt 0:01:11]} 14. Bxf3 {[%emt 0:00:06]} Qxd4 {[%emt 0:00:22] LiveBook: 11 Games} 15. Qxd4 {[%emt 0:02:05]} Nxd4 {[%emt 0:00:09]} 16. Bh5 {[%emt 0:00:26]} Bg7 {[%emt 0:12:01]} 17. f4 $1 {[%emt 0:05:37]} Ke7 {[%emt 0:01:50] [#]} 18. Rd1 $146 {[%emt 0:07:06]} ({Predecessor:} 18. Nd2) 18... Nf5 {[%emt 0:05:01]} 19. Kf2 {[%emt 0:01:29]} f6 $1 {[%emt 0:01:03]} 20. exf6+ {[%emt 0:04:47]} Bxf6 {[%emt 0:01:44]} 21. Ra2 {[%emt 0:00:04]} a5 {[%emt 0:02:31]} 22. bxa5 {[%emt 0:03:11]} Rxa5 {[%emt 0:00:11]} 23. Bg4 {[%emt 0:02:40]} Nd6 {[%emt 0:03:03]} 24. Bf3 {[%emt 0:04:12]} Rc5 {[%emt 0:02:16]} 25. Nd2 {[%emt 0:01:31]} Rc3 {[%emt 0:01:41]} 26. Rb1 {[%emt 0:01:17]} Bc6 {[%emt 0:02:44]} 27. Rb3 {[%emt 0:03:47]} Rc1 {[%emt 0:00:44]} 28. Rb1 {[%emt 0:02:02]} Rc5 {[%emt 0:01:18]} 29. a4 {[%emt 0:01:18]} e5 {[%emt 0:06:46]} 30. fxe5 {[%emt 0:01:10]} Bxe5 $14 {[%emt 0:01:18]} 31. a5 {[%emt 0:03:03]} Ne4+ {[%emt 0:02:56]} 32. Nxe4 {[%emt 0:01:16]} dxe4 {[%emt 0:00:19]} 33. Bd1 {[%emt 0:00:24]} Rc3 {[%emt 0:00:43]} 34. a6 {[%emt 0:01:01]} Bxg3+ {[%emt 0:01:08]} 35. Ke2 {[%emt 0:00:31]} bxa6 {[%emt 0:00:12]} 36. Rxa6 {[%emt 0:00:07]} Bc7 {[%emt 0:02:01]} 37. Ba4 {[%emt 0:05:02]} Bxa4 {[%emt 0:01:13]} 38. Rxa4 {[%emt 0:00:05]} Rxh3 {[%emt 0:00:06]} 39. Rxe4+ {[%emt 0:00:00]} Kf6 {[%emt 0:00:00]} 40. Re3 {[%emt 0:00:00]} Rxe3+ {[%emt 0:00:00]} 1/2-1/2

[Event "AZE-ch Men 2019"]
[Site "Baku"]
[Date "2019.01.23"]
[Round "8"]
[White "Abdulov, Orkhan"]
[Black "Babazada, Khazar"]
[Result "1/2-1/2"]
[ECO "B54"]
[WhiteElo "2395"]
[BlackElo "2299"]
[Annotator "NA"]
[PlyCount "31"]
[EventDate "2019.01.16"]
[EventType "swiss"]
[EventCountry "AZE"]
[SourceTitle "playchess.com"]
[Source "ChessBase"]
[SourceQuality "1"]
[TimeControl "40/5400+30:1800+30"]

1. e4 {[%emt 0:12:21]} c5 {[%emt 0:00:00]} 2. Nf3 {[%emt 0:00:06]} d6 {[%emt 0:00:00]} 3. d4 {[%emt 0:00:05]} cxd4 {[%emt 0:00:04]} 4. Nxd4 {[%emt 0:00:07]} Nf6 {[%emt 0:00:03]} 5. f3 {[%emt 0:02:18]} a6 {[%emt 0:02:29]} 6. c4 {[%emt 0:01:38]} e5 {[%emt 0:00:53]} 7. Nb3 {[%emt 0:01:21]} Be7 {[%emt 0:00:33]} 8. Nc3 {[%emt 0:00:20]} O-O {[%emt 0:00:43]} 9. Be2 {[%emt 0:01:45]} Be6 {[%emt 0:01:37]} 10. Be3 {[%emt 0:00:12]} Nbd7 {[%emt 0:00:03] LiveBook: 3 Games} 11. Nd5 {[%emt 0:00:50]} Bxd5 {[%emt 0:00:41]} 12. cxd5 $14 {[%emt 0:00:21]} Nc5 {[%emt 0:00:15]} 13. Nd2 {[%emt 0:00:01]} Ncd7 {[%emt 0:00:02]} 14. Nb3 {[%emt 0:00:04]} Nc5 {[%emt 0:00:03]} 15. Nd2 {[%emt 0:00:02]} Ncd7 {[%emt 0:00:03]} 16. Nb3 {[%emt 0:00:02]} 1/2-1/2

[Event "AZE-ch Men 2019"]
[Site "Baku"]
[Date "2019.01.23"]
[Round "8"]
[White "Davidov, Samir"]
[Black "Asadli, Vugar"]
[Result "0-1"]
[ECO "C00"]
[WhiteElo "2344"]
[BlackElo "2471"]
[Annotator "ChessBase"]
[PlyCount "90"]
[EventDate "2019.01.16"]
[EventType "swiss"]
[EventCountry "AZE"]
[SourceTitle "playchess.com"]
[Source "ChessBase"]
[SourceQuality "1"]
[TimeControl "40/5400+30:1800+30"]

1. e4 {[%emt 0:10:41]} e6 {[%emt 0:00:00]} 2. d3 {[%emt 0:00:04]} d5 {[%emt 0:00:08]} 3. Nd2 {[%emt 0:00:06]} c5 {[%emt 0:00:18]} 4. Ngf3 {[%emt 0:00:09]} Nc6 {[%emt 0:00:28]} 5. g3 {[%emt 0:00:05]} g6 {[%emt 0:00:44]} 6. Bg2 {[%emt 0:00:05]} Bg7 {[%emt 0:00:16]} 7. O-O {[%emt 0:00:06]} Nf6 {[%emt 0:01:08]} 8. Re1 {[%emt 0:00:06]} O-O {[%emt 0:00:17]} 9. c3 {[%emt 0:00:05]} a5 {[%emt 0:00:12]} 10. e5 {[%emt 0:00:06]} Ng4 {[%emt 0:01:29]} 11. d4 {[%emt 0:00:09]} cxd4 {[%emt 0:01:24]} 12. cxd4 {[%emt 0:00:02]} f6 {[%emt 0:00:06]} 13. h3 {[%emt 0:00:32]} Nxf2 {[%emt 0:01:15]} 14. Kxf2 {[%emt 0:00:06]} fxe5 {[%emt 0:00:03]} 15. Kg1 {[%emt 0:00:17]} exd4 {[%emt 0:09:15]} 16. Nb3 {[%emt 0:00:16]} e5 {[%emt 0:05:29]} 17. Bg5 {[%emt 0:00:40]} Qd6 {[%emt 0:03:16]} 18. Rc1 {[%emt 0:06:54]} h6 {[%emt 0:12:10]} 19. Bd2 {[%emt 0:00:09]} g5 {[%emt 0:07:21]} 20. Nh2 {[%emt 0:12:29]} e4 {[%emt 0:07:31]} 21. Nf1 {[%emt 0:00:10]} b6 {[%emt 0:05:04]} 22. Be3 {[%emt 0:17:45]} dxe3 {[%emt 0:03:03]} 23. Bxe4 {[%emt 0:00:06]} Be6 {[%emt 0:08:58]} 24. Rxe3 {[%emt 0:00:13]} a4 {[%emt 0:01:46]} 25. Bg2 {[%emt 0:00:06]} Bf7 {[%emt 0:01:05]} 26. Nbd2 {[%emt 0:00:14]} Bd4 {[%emt 0:01:33]} 27. Kh2 {[%emt 0:00:06]} Bxe3 {[%emt 0:01:53]} 28. Nxe3 {[%emt 0:00:24]} Ne7 {[%emt 0:00:54]} 29. Ng4 {[%emt 0:04:10]} Rad8 {[%emt 0:05:31]} 30. Qxa4 {[%emt 0:00:58]} h5 {[%emt 0:01:49]} 31. Ne3 {[%emt 0:00:08]} h4 {[%emt 0:00:45]} 32. Ndf1 {[%emt 0:02:06]} d4 {[%emt 0:01:32]} 33. Nc4 {[%emt 0:03:12]} Qf6 {[%emt 0:00:19]} 34. Ncd2 {[%emt 0:10:25]} Bd5 {[%emt 0:02:24]} 35. Ne4 {[%emt 0:00:37]} Qe5 {[%emt 0:00:17]} 36. Qb5 {[%emt 0:01:55]} Rf5 {[%emt 0:02:31]} 37. Qe2 {[%emt 0:04:35]} Rdf8 {[%emt 0:03:06]} 38. Kg1 {[%emt 0:02:24]} Rf2 {[%emt 0:01:17]} 39. Qxf2 {[%emt 0:00:46]} Rxf2 {[%emt 0:00:04]} 40. Nxf2 {[%emt 0:00:00]} Bxg2 {[%emt 0:00:00]} 41. Kxg2 {[%emt 0:00:11]} Nf5 {[%emt 0:01:29]} 42. Ng4 {[%emt 0:04:48]} Qe2+ {[%emt 0:00:43]} 43. Kg1 {[%emt 0:00:05]} hxg3 {[%emt 0:02:02]} 44. Rc8+ {[%emt 0:04:24]} Kf7 {[%emt 0:00:26]} 45. Rc2 {[%emt 0:01:40]} Qxc2 {[%emt 0:00:33]} 0-1